Workbook

Sheet MxL7704
S1: BK Freq | T1: VMIN | U1: VMAX | V1: BK1 Vref | W1: BK1 Vout | X1: BK2 Vref | Y1: BK2 Vout | Z1: BK3 Vref | AA1: BK3 Vout | AB1: BK4 Vref | AC1: BK4 Vout | AD1: LDO Vout | AE1: Enable
G2: MXL7704 Five Output Universal PMIC with I2C Interface and 8-bit ADC | S2: =J15 -> 1 | T2: =IF(J13="--",0,J13) -> 4.25 | U2: =IF(L13="--",30,L13) -> 5.5 | V2: 0 | W2: =IF(V2>(T2-0.8),"--",V2) -> 0 | X2: 0 | Y2: =IF(X2<(U2*S2*0.12),"--",X2) -> -- | Z2: 0 | AA2: =IF(Z2<(U2*S2*0.12),"--",Z2) -> -- | AB2: 0 | AC2: =IF(AB2<(U2*S2*0.12),"--",AB2) -> -- | AD2: 0 | AE2: ON
S3: =S2 -> 1 | T3: =T2 -> 4.25 | U3: =U2 -> 5.5 | V3: 0.02 | W3: =IF(V3>(T3-0.8),"--",V3) -> 0.02 | X3: 0.02 | Y3: =IF(X3<(U3*S3*0.12),"--",X3) -> -- | Z3: 0.00625 | AA3: =IF(Z3<(U3*S3*0.12),"--",Z3) -> -- | AB3: 0.00625 | AC3: =IF(AB3<(U3*S3*0.12),"--",AB3) -> -- | AD3: 0.02 | AE3: OFF
S4: =S3 -> 1 | T4: 4.25 | U4: 5.5 | V4: 0.04 | W4: 0.04 | X4: 0.04 | Y4: -- | Z4: 0.0125 | AA4: -- | AB4: 0.0125 | AC4: -- | AD4: 0.04
S5: 1 | T5: 4.25 | U5: 5.5 | V5: 0.06 | W5: 0.06 | X5: 0.06 | Y5: -- | Z5: 0.01875 | AA5: -- | AB5: 0.01875 | AC5: -- | AD5: 0.06 | AE5: Group
S6: 1 | T6: 4.25 | U6: 5.5 | V6: 0.08 | W6: 0.08 | X6: 0.08 | Y6: -- | Z6: 0.025 | AA6: -- | AB6: 0.025 | AC6: -- | AD6: 0.08 | AE6: 0
B7: MxL7704 Configuration Tool | S7: 1 | T7: 4.25 | U7: 5.5 | V7: 0.1 | W7: 0.1 | X7: 0.1 | Y7: -- | Z7: 0.03125 | AA7: -- | AB7: 0.03125 | AC7: -- | AD7: 0.1 | AE7: 1
Q8: Revision 2.0 | S8: 1 | T8: 4.25 | U8: 5.5 | V8: 0.12 | W8: 0.12 | X8: 0.12 | Y8: -- | Z8: 0.0375 | AA8: -- | AB8: 0.0375 | AC8: -- | AD8: 0.12 | AE8: 2
H9: Device Name | J9: MXL7704 | S9: 1 | T9: 4.25 | U9: 5.5 | V9: 0.14 | W9: 0.14 | X9: 0.14 | Y9: -- | Z9: 0.04375 | AA9: -- | AB9: 0.04375 | AC9: -- | AD9: 0.14 | AE9: 3
S10: 1 | T10: 4.25 | U10: 5.5 | V10: 0.16 | W10: 0.16 | X10: 0.16 | Y10: -- | Z10: 0.05 | AA10: -- | AB10: 0.05 | AC10: -- | AD10: 0.16
H11: Number of Channels | J11: 5 | M11: Channels | S11: 1 | T11: 4.25 | U11: 5.5 | V11: 0.18 | W11: 0.18 | X11: 0.18 | Y11: -- | Z11: 0.05625 | AA11: -- | AB11: 0.05625 | AC11: -- | AD11: 0.18
S12: =S11 -> 1 | T12: =T11 -> 4.25 | U12: =U11 -> 5.5 | V12: 0.2 | W12: 0.2 | X12: 0.2 | Y12: -- | Z12: 0.0625 | AA12: -- | AB12: 0.0625 | AC12: -- | AD12: 0.2
G13: VIN Min | J13: 4.25 | K13: V | L13: 5.5 | M13: V VIN Max | S13: 1 | T13: 4.25 | U13: 5.5 | V13: 0.22 | W13: 0.22 | X13: 0.22 | Y13: -- | Z13: 0.06875 | AA13: -- | AB13: 0.06875 | AC13: -- | AD13: 0.22
S14: 1 | T14: 4.25 | U14: 5.5 | V14: 0.24 | W14: 0.24 | X14: 0.24 | Y14: -- | Z14: 0.075 | AA14: -- | AB14: 0.075 | AC14: -- | AD14: 0.24
E15: Buck Switching Frequency | J15: 1 | M15: MHz | S15: 1 | T15: 4.25 | U15: 5.5 | V15: 0.26 | W15: 0.26 | X15: 0.26 | Y15: -- | Z15: 0.08125 | AA15: -- | AB15: 0.08125 | AC15: -- | AD15: 0.26
A16: Output Voltage | S16: 1 | T16: 4.25 | U16: 5.5 | V16: 0.28 | W16: 0.28 | X16: 0.28 | Y16: -- | Z16: 0.0875 | AA16: -- | AB16: 0.0875 | AC16: -- | AD16: 0.28
G17: Buck 1 | J17: 3.46 | M17: =IF(J17="--","V =>",IF(J17>(T17-0.8),"V =>","V")) -> V => | N17: =IF(J17="--","See DS for LOW VIN",IF(J17>(T17-0.8),"See DS for LOW VIN","")) -> See DS for LOW VIN | S17: 1 | T17: 4.25 | U17: 5.5 | V17: 0.3 | W17: 0.3 | X17: 0.3 | Y17: -- | Z17: 0.09375 | AA17: -- | AB17: 0.09375 | AC17: -- | AD17: 0.3
G18: Buck 2 | J18: 1.8 | M18: =IF(J18="--","V =>",IF(J18<(U18*S18*0.12),"V =>","V")) -> V | N18: =IF(J18="--","MIN-ON-TIME VIOLATED",IF(J18<(U18*S18*0.12),"MIN-ON-TIME VIOLATED","")) ->  | S18: 1 | T18: 4.25 | U18: 5.5 | V18: 0.32 | W18: 0.32 | X18: 0.32 | Y18: -- | Z18: 0.1 | AA18: -- | AB18: 0.1 | AC18: -- | AD18: 0.32
G19: Buck 3 | J19: 1.5 | M19: =IF(J19="--","V =>",IF(J19<(U19*S19*0.12),"V =>","V")) -> V | N19: =IF(J19="--","MIN-ON-TIME VIOLATED",IF(J19<(U19*S19*0.12),"MIN-ON-TIME VIOLATED","")) ->  | S19: 1 | T19: 4.25 | U19: 5.5 | V19: 0.34 | W19: 0.34 | X19: 0.34 | Y19: -- | Z19: 0.10625 | AA19: -- | AB19: 0.10625 | AC19: -- | AD19: 0.34
G20: Buck 4 | J20: 0.9 | M20: =IF(J20="--","V =>",IF(J20<(U20*S20*0.12),"V =>","V")) -> V | N20: =IF(J20="--","MIN-ON-TIME VIOLATED",IF(J20<(U20*S20*0.12),"MIN-ON-TIME VIOLATED","")) ->  | S20: =S19 -> 1 | T20: 4.25 | U20: 5.5 | V20: 0.36 | W20: 0.36 | X20: 0.36 | Y20: -- | Z20: 0.1125 | AA20: -- | AB20: 0.1125 | AC20: -- | AD20: 0.36
S21: 1 | T21: 4.25 | U21: 5.5 | V21: 0.38 | W21: 0.38 | X21: 0.38 | Y21: -- | Z21: 0.11875 | AA21: -- | AB21: 0.11875 | AC21: -- | AD21: 0.38
G22: LDO | J22: 3.34 | M22: V | S22: 1 | T22: 4.25 | U22: 5.5 | V22: 0.4 | W22: 0.4 | X22: 0.4 | Y22: -- | Z22: 0.125 | AA22: -- | AB22: 0.125 | AC22: -- | AD22: 0.4
A23: Sequencing Group Channel Enable | S23: 1 | T23: 4.25 | U23: 5.5 | V23: 0.42 | W23: 0.42 | X23: 0.42 | Y23: -- | Z23: 0.13125 | AA23: -- | AB23: 0.13125 | AC23: -- | AD23: 0.42 | AE23: Freq
B24: VOUT1 | D24: 3.0V to 3.6V Max=1.5A | G24: Buck 1 | J24: 2 | L24: ON | M24: Buck 1 | S24: 1 | T24: 4.25 | U24: 5.5 | V24: 0.44 | W24: 0.44 | X24: 0.44 | Y24: -- | Z24: 0.1375 | AA24: -- | AB24: 0.1375 | AC24: -- | AD24: 0.44 | AE24: 1
B25: VOUT2 | D25: 1.3V to 1.9V Max=1.5A | G25: Buck 2 | J25: 3 | L25: ON | M25: Buck 2 | S25: 1 | T25: 4.25 | U25: 5.5 | V25: 0.46 | W25: 0.46 | X25: 0.46 | Y25: -- | Z25: 0.14375 | AA25: -- | AB25: 0.14375 | AC25: -- | AD25: 0.46 | AE25: 1.1
B26: VOUT3 | D26: 0.8V to 1.6V Max=2.5A | G26: Buck 3 | J26: 1 | L26: ON | M26: Buck 3 | S26: 1 | T26: 4.25 | U26: 5.5 | V26: 0.48 | W26: 0.48 | X26: 0.48 | Y26: -- | Z26: 0.15 | AA26: -- | AB26: 0.15 | AC26: -- | AD26: 0.48 | AE26: 1.2
B27: VOUT4 | D27: 0.6V to 1.4V Max=4A | G27: Buck 4 | J27: 0 | L27: ON | M27: Buck 4 | S27: 1 | T27: 4.25 | U27: 5.5 | V27: 0.5 | W27: 0.5 | X27: 0.5 | Y27: -- | Z27: 0.15625 | AA27: -- | AB27: 0.15625 | AC27: -- | AD27: 0.5 | AE27: 1.3
S28: 1 | T28: 4.25 | U28: 5.5 | V28: 0.52 | W28: 0.52 | X28: 0.52 | Y28: -- | Z28: 0.1625 | AA28: -- | AB28: 0.1625 | AC28: -- | AD28: 0.52 | AE28: 1.4
B29: LDO | D29: 1.5V to 3.6V Max=0.1A | G29: LDO | J29: 2 | L29: ON | M29: LDO | S29: 1 | T29: 4.25 | U29: 5.5 | V29: 0.54 | W29: 0.54 | X29: 0.54 | Y29: -- | Z29: 0.16875 | AA29: -- | AB29: 0.16875 | AC29: -- | AD29: 0.54 | AE29: 1.5
S30: 1 | T30: 4.25 | U30: 5.5 | V30: 0.56 | W30: 0.56 | X30: 0.56 | Y30: -- | Z30: 0.175 | AA30: -- | AB30: 0.175 | AC30: -- | AD30: 0.56 | AE30: 1.6
E31: SEQ_EN Group Assign | J31: 1 | S31: 1 | T31: 4.25 | U31: 5.5 | V31: 0.58 | W31: 0.58 | X31: 0.58 | Y31: -- | Z31: 0.18125 | AA31: -- | AB31: 0.18125 | AC31: -- | AD31: 0.58 | AE31: 1.7
S32: 1 | T32: 4.25 | U32: 5.5 | V32: 0.6 | W32: 0.6 | X32: 0.6 | Y32: -- | Z32: 0.1875 | AA32: -- | AB32: 0.1875 | AC32: -- | AD32: 0.6 | AE32: 1.8
S33: 1 | T33: 4.25 | U33: 5.5 | V33: 0.62 | W33: 0.62 | X33: 0.62 | Y33: -- | Z33: 0.19375 | AA33: -- | AB33: 0.19375 | AC33: -- | AD33: 0.62 | AE33: 1.9
S34: 1 | T34: 4.25 | U34: 5.5 | V34: 0.64 | W34: 0.64 | X34: 0.64 | Y34: -- | Z34: 0.2 | AA34: -- | AB34: 0.2 | AC34: -- | AD34: 0.64 | AE34: 2
S35: 1 | T35: 4.25 | U35: 5.5 | V35: 0.66 | W35: 0.66 | X35: 0.66 | Y35: 0.66 | Z35: 0.20625 | AA35: -- | AB35: 0.20625 | AC35: -- | AD35: 0.66 | AE35: 2.1
S36: =S35 -> 1 | T36: 4.25 | U36: 5.5 | V36: 0.68 | W36: 0.68 | X36: 0.68 | Y36: 0.68 | Z36: 0.2125 | AA36: -- | AB36: 0.2125 | AC36: -- | AD36: 0.68
S37: 1 | T37: 4.25 | U37: 5.5 | V37: 0.7 | W37: 0.7 | X37: 0.7 | Y37: 0.7 | Z37: 0.21875 | AA37: -- | AB37: 0.21875 | AC37: -- | AD37: 0.7 | AE37: Vin Ref | AF37: Vin MAX | AG37: Vin MIN
S38: 1 | T38: 4.25 | U38: 5.5 | V38: 0.72 | W38: 0.72 | X38: 0.72 | Y38: 0.72 | Z38: 0.225 | AA38: -- | AB38: 0.225 | AC38: -- | AD38: 0.72 | AE38: 4 | AF38: =IF(AE38<T38, "--",AE38) -> -- | AG38: =IF(U38<AE38,"--",AE38) -> 4
S39: 1 | T39: 4.25 | U39: 5.5 | V39: 0.74 | W39: 0.74 | X39: 0.74 | Y39: 0.74 | Z39: 0.23125 | AA39: -- | AB39: 0.23125 | AC39: -- | AD39: 0.74 | AE39: =AE38+0.25 -> 4.25 | AF39: =IF(AE39<T39, "--",AE39) -> 4.25 | AG39: =IF(U39<AE39,"--",AE39) -> 4.25
S40: 1 | T40: 4.25 | U40: 5.5 | V40: 0.76 | W40: 0.76 | X40: 0.76 | Y40: 0.76 | Z40: 0.2375 | AA40: -- | AB40: 0.2375 | AC40: -- | AD40: 0.76 | AE40: =AE39+0.25 -> 4.5 | AF40: 4.5 | AG40: 4.5
S41: 1 | T41: 4.25 | U41: 5.5 | V41: 0.78 | W41: 0.78 | X41: 0.78 | Y41: 0.78 | Z41: 0.24375 | AA41: -- | AB41: 0.24375 | AC41: -- | AD41: 0.78 | AE41: 4.75 | AF41: 4.75 | AG41: 4.75
S42: 1 | T42: 4.25 | U42: 5.5 | V42: 0.8 | W42: 0.8 | X42: 0.8 | Y42: 0.8 | Z42: 0.25 | AA42: -- | AB42: 0.25 | AC42: -- | AD42: 0.8 | AE42: 5 | AF42: 5 | AG42: 5
S43: 1 | T43: 4.25 | U43: 5.5 | V43: 0.82 | W43: 0.82 | X43: 0.82 | Y43: 0.82 | Z43: 0.25625 | AA43: -- | AB43: 0.25625 | AC43: -- | AD43: 0.82 | AE43: 5.25 | AF43: 5.25 | AG43: 5.25
S44: 1 | T44: 4.25 | U44: 5.5 | V44: 0.84 | W44: 0.84 | X44: 0.84 | Y44: 0.84 | Z44: 0.2625 | AA44: -- | AB44: 0.2625 | AC44: -- | AD44: 0.84 | AE44: 5.5 | AF44: 5.5 | AG44: 5.5
A45: PG1 Routing PG2 Routing | S45: 1 | T45: 4.25 | U45: 5.5 | V45: 0.86 | W45: 0.86 | X45: 0.86 | Y45: 0.86 | Z45: 0.26875 | AA45: -- | AB45: 0.26875 | AC45: -- | AD45: 0.86
G46: Buck 1 | J46: ON | L46: OFF | M46: Buck 1 | S46: 1 | T46: 4.25 | U46: 5.5 | V46: 0.88 | W46: 0.88 | X46: 0.88 | Y46: 0.88 | Z46: 0.275 | AA46: -- | AB46: 0.275 | AC46: -- | AD46: 0.88
G47: Buck 2 | J47: OFF | L47: ON | M47: Buck 2 | S47: 1 | T47: 4.25 | U47: 5.5 | V47: 0.9 | W47: 0.9 | X47: 0.9 | Y47: 0.9 | Z47: 0.28125 | AA47: -- | AB47: 0.28125 | AC47: -- | AD47: 0.9
G48: Buck 3 | J48: OFF | L48: OFF | M48: Buck 3 | S48: 1 | T48: 4.25 | U48: 5.5 | V48: 0.92 | W48: 0.92 | X48: 0.92 | Y48: 0.92 | Z48: 0.2875 | AA48: -- | AB48: 0.2875 | AC48: -- | AD48: 0.92
G49: Buck 4 | J49: OFF | L49: OFF | M49: Buck 4 | S49: 1 | T49: 4.25 | U49: 5.5 | V49: 0.94 | W49: 0.94 | X49: 0.94 | Y49: 0.94 | Z49: 0.29375 | AA49: -- | AB49: 0.29375 | AC49: -- | AD49: 0.94
G50: LDO | J50: OFF | L50: OFF | M50: LDO | S50: 1 | T50: 4.25 | U50: 5.5 | V50: 0.96 | W50: 0.96 | X50: 0.96 | Y50: 0.96 | Z50: 0.3 | AA50: -- | AB50: 0.3 | AC50: -- | AD50: 0.96
S51: 1 | T51: 4.25 | U51: 5.5 | V51: 0.98 | W51: 0.98 | X51: 0.98 | Y51: 0.98 | Z51: 0.30625 | AA51: -- | AB51: 0.30625 | AC51: -- | AD51: 0.98
S52: =S51 -> 1 | T52: 4.25 | U52: 5.5 | V52: 1 | W52: 1 | X52: 1 | Y52: 1 | Z52: 0.3125 | AA52: -- | AB52: 0.3125 | AC52: -- | AD52: 1
S53: 1 | T53: 4.25 | U53: 5.5 | V53: 1.02 | W53: 1.02 | X53: 1.02 | Y53: 1.02 | Z53: 0.31875 | AA53: -- | AB53: 0.31875 | AC53: -- | AD53: 1.02
S54: 1 | T54: 4.25 | U54: 5.5 | V54: 1.04 | W54: 1.04 | X54: 1.04 | Y54: 1.04 | Z54: 0.325 | AA54: -- | AB54: 0.325 | AC54: -- | AD54: 1.04
S55: 1 | T55: 4.25 | U55: 5.5 | V55: 1.06 | W55: 1.06 | X55: 1.06 | Y55: 1.06 | Z55: 0.33125 | AA55: -- | AB55: 0.33125 | AC55: -- | AD55: 1.06
S56: 1 | T56: 4.25 | U56: 5.5 | V56: 1.08 | W56: 1.08 | X56: 1.08 | Y56: 1.08 | Z56: 0.3375 | AA56: -- | AB56: 0.3375 | AC56: -- | AD56: 1.08
S57: 1 | T57: 4.25 | U57: 5.5 | V57: 1.1 | W57: 1.1 | X57: 1.1 | Y57: 1.1 | Z57: 0.34375 | AA57: -- | AB57: 0.34375 | AC57: -- | AD57: 1.1
S58: 1 | T58: 4.25 | U58: 5.5 | V58: 1.12 | W58: 1.12 | X58: 1.12 | Y58: 1.12 | Z58: 0.35 | AA58: -- | AB58: 0.35 | AC58: -- | AD58: 1.12
S59: 1 | T59: 4.25 | U59: 5.5 | V59: 1.14 | W59: 1.14 | X59: 1.14 | Y59: 1.14 | Z59: 0.35625 | AA59: -- | AB59: 0.35625 | AC59: -- | AD59: 1.14
S60: 1 | T60: 4.25 | U60: 5.5 | V60: 1.16 | W60: 1.16 | X60: 1.16 | Y60: 1.16 | Z60: 0.3625 | AA60: -- | AB60: 0.3625 | AC60: -- | AD60: 1.16
S61: 1 | T61: 4.25 | U61: 5.5 | V61: 1.18 | W61: 1.18 | X61: 1.18 | Y61: 1.18 | Z61: 0.36875 | AA61: -- | AB61: 0.36875 | AC61: -- | AD61: 1.18
S62: 1 | T62: 4.25 | U62: 5.5 | V62: 1.2 | W62: 1.2 | X62: 1.2 | Y62: 1.2 | Z62: 0.375 | AA62: -- | AB62: 0.375 | AC62: -- | AD62: 1.2
A63: Fault Action and Shudown Settings | S63: 1 | T63: 4.25 | U63: 5.5 | V63: 1.22 | W63: 1.22 | X63: 1.22 | Y63: 1.22 | Z63: 0.38125 | AA63: -- | AB63: 0.38125 | AC63: -- | AD63: 1.22
G64: Chip Fault | J64: ON | S64: 1 | U64: 5.5 | V64: 1.24 | W64: -- | X64: 1.24 | Y64: 1.24 | Z64: 0.3875 | AA64: -- | AB64: 0.3875 | AC64: -- | AD64: 1.24
G65: Soft Off | J65: ON | S65: 1 | U65: 5.5 | V65: 1.26 | W65: -- | X65: 1.26 | Y65: 1.26 | Z65: 0.39375 | AA65: -- | AB65: 0.39375 | AC65: -- | AD65: 1.26
G66: 70-Ohm Discharge | J66: ON | S66: 1 | U66: 5.5 | V66: 1.28 | W66: -- | X66: 1.28 | Y66: 1.28 | Z66: 0.4 | AA66: -- | AB66: 0.4 | AC66: -- | AD66: 1.28
S67: 1 | U67: 5.5 | V67: 1.3 | W67: =IF(V67>(T67-0.8),"--",V67) -> -- | X67: 1.3 | Y67: =IF(X67<(U67*S67*0.12),"--",X67) -> 1.3 | Z67: 0.40625 | AA67: =IF(Z67<(U67*S67*0.12),"--",Z67) -> -- | AB67: 0.40625 | AC67: =IF(AB67<(U67*S67*0.12),"--",AB67) -> -- | AD67: 1.3
B68: MxL7704 Register Settings (Slave Address = 7'h2D) | S68: =S67 -> 1 | U68: 5.5 | V68: 1.32 | W68: -- | X68: 1.32 | Y68: 1.32 | Z68: 0.4125 | AA68: -- | AB68: 0.4125 | AC68: -- | AD68: 1.32
S69: 1 | U69: 5.5 | V69: 1.34 | W69: -- | X69: 1.34 | Y69: 1.34 | Z69: 0.41875 | AA69: -- | AB69: 0.41875 | AC69: -- | AD69: 1.34
F70: MXL7704 Registers | J70: Address (HEX) | M70: Data (HEX) | Q70: Read From MXL7704(HEX) | S70: 1 | U70: 5.5 | V70: 1.36 | W70: -- | X70: 1.36 | Y70: 1.36 | Z70: 0.425 | AA70: -- | AB70: 0.425 | AC70: -- | AD70: 1.36
F71: Voltage LDO | J71: 10 | M71: =RIGHT("0"&DEC2HEX((J22*1000)/20),2) -> A7 | Q71: A5 | S71: 1 | W71: -- | X71: 1.38 | Y71: 1.38 | Z71: 0.43125 | AA71: 0.43125 | AB71: 0.43125 | AC71: 0.43125 | AD71: 1.38
F72: Voltage Buck 1 | J72: 11 | M72: =RIGHT("0"&DEC2HEX((J17*1000)/20),2) -> AD | Q72: A5 | S72: 1 | W72: =IF(V72>(T72-0.8),"--",V72) -> -- | X72: 1.4 | Y72: =IF(X72<(U72*S72*0.12),"--",X72) -> 1.4 | Z72: 0.4375 | AA72: =IF(Z72<(U72*S72*0.12),"--",Z72) -> 0.4375 | AB72: 0.4375 | AC72: =IF(AB72<(U72*S72*0.12),"--",AB72) -> 0.4375 | AD72: 1.4
F73: Voltage Buck 2 | J73: 12 | M73: =RIGHT("0"&IF(N18="",DEC2HEX((J18*1000)/20),"ERROR"),2) -> 5A | Q73: 5A | S73: 1 | W73: -- | X73: 1.42 | Y73: 1.42 | Z73: 0.44375 | AA73: 0.44375 | AB73: 0.44375 | AC73: 0.44375 | AD73: 1.42
F74: Voltage Buck 3 | J74: 13 | M74: =RIGHT("0"&IF(N19="",DEC2HEX((J19*100000)/625),"ERROR"),2) -> F0 | Q74: D8 | S74: 1 | W74: -- | X74: 1.44 | Y74: 1.44 | Z74: 0.45 | AA74: 0.45 | AB74: 0.45 | AC74: 0.45 | AD74: 1.44
F75: Voltage Buck 4 | J75: 14 | M75: =RIGHT("0"& IF(N20="",DEC2HEX((J20*100000)/625),"ERROR"),2) -> 90 | Q75: C0 | S75: 1 | W75: -- | X75: 1.46 | Y75: 1.46 | Z75: 0.45625 | AA75: 0.45625 | AB75: 0.45625 | AC75: 0.45625 | AD75: 1.46
F76: Buck Group | J76: 15 | M76: =RIGHT("0"&DEC2HEX(J24 + J25*4 + J26*16 + J27*64),2) -> 1E | Q76: F9 | S76: 1 | W76: -- | X76: 1.48 | Y76: 1.48 | Z76: 0.4625 | AA76: 0.4625 | AB76: 0.4625 | AC76: 0.4625 | AD76: 1.48
F77: LDO Group/CH_EN | J77: 16 | M77: =RIGHT("0"&DEC2HEX(J29*64 + IF(L27="OFF",0,1)*16 + IF(L26="OFF",0,1)*8 + IF(L25="OFF",0,1)*4 + IF(L24="OFF",0,1)*2 + IF(L29="OFF",0,1)),2) -> 9F | Q77: 1F | S77: 1 | W77: -- | X77: 1.5 | Y77: 1.5 | Z77: 0.46875 | AA77: 0.46875 | AB77: 0.46875 | AC77: 0.46875 | AD77: 1.5
F78: PG1 Routing | J78: 17 | M78: =RIGHT("0"&DEC2HEX(J31*64 + IF(J49="ON",1,0)*16 + IF(J48="ON",1,0)*8 + IF(J47="ON",1,0)*4 + IF(J46="ON",1,0)*2 + IF(J50="ON",1,0)),2) -> 42 | Q78: 64 | S78: 1 | W78: -- | X78: 1.52 | Y78: 1.52 | Z78: 0.475 | AA78: 0.475 | AB78: 0.475 | AC78: 0.475 | AD78: 1.52
F79: PG2 Routing | J79: 18 | M79: =RIGHT("0"&DEC2HEX(IF(L49="ON",1,0)*16 + IF(L48="ON",1,0)*8 + IF(L47="ON",1,0)*4 + IF(L46="ON",1,0)*2 + IF(L50="ON",1,0)),2) -> 04 | Q79: 1A | S79: 1 | W79: -- | X79: 1.54 | Y79: 1.54 | Z79: 0.48125 | AA79: 0.48125 | AB79: 0.48125 | AC79: 0.48125 | AD79: 1.54
F80: Fault Actions/Freq | J80: 19 | M80: =RIGHT("0"&DEC2HEX(IF(J64="ON",1,0)*128 + IF(J65="ON",1,0)*64 + IF(J66="ON",1,0)*32 + (J15-0.6)*10),2) -> E4 | Q80: E9 | S80: 1 | W80: -- | X80: 1.56 | Y80: 1.56 | Z80: 0.4875 | AA80: 0.4875 | AB80: 0.4875 | AC80: 0.4875 | AD80: 1.56
S81: 1 | W81: -- | X81: 1.58 | Y81: 1.58 | Z81: 0.49375 | AA81: 0.49375 | AB81: 0.49375 | AC81: 0.49375 | AD81: 1.58
S82: 1 | W82: -- | X82: 1.6 | Y82: 1.6 | Z82: 0.5 | AA82: 0.5 | AB82: 0.5 | AC82: 0.5 | AD82: 1.6
A83: =MAX(IF(J24=0,IF(A87="OFF",0,J17),0),IF(J25=0,IF(A88="OFF",0,J18),0),IF(J26=0,IF(A89="OFF",0,J19),0),IF(J27=0,IF(A90="OFF",0,J20),0),IF(J29=0,IF(A91="OFF",0,J22),0)) -> 0.9 | B83: Time (ms) | D83: VOUT1 (V) | F83: VOUT2 (V) | H83: LDO (V) | J83: VOUT3 (V) | L83: VOUT4 (V) | S83: 1 | T83: =T82 -> 0 | U83: =U82 -> 0 | V83: 1.62 | W83: -- | X83: 1.62 | Y83: 1.62 | Z83: 0.50625 | AA83: 0.50625 | AB83: 0.50625 | AC83: 0.50625 | AD83: 1.62
A84: =MAX(IF(J24=1,IF(A87="OFF",0,J17),0),IF(J25=1,IF(A88="OFF",0,J18),0),IF(J26=1,IF(A89="OFF",0,J19),0),IF(J27=1,IF(A90="OFF",0,J20),0),IF(J29=1,IF(A91="OFF",0,J22),0)) -> 1.5 | B84: 0 | D84: 0 | S84: =S83 -> 1 | T84: 0 | U84: 0 | V84: 1.64 | W84: -- | X84: 1.64 | Y84: 1.64 | Z84: 0.5125 | AA84: 0.5125 | AB84: 0.5125 | AC84: 0.5125 | AD84: 1.64
A85: =MAX(IF(J24=2,IF(A87="OFF",0,J17),0),IF(J25=2,IF(A88="OFF",0,J18),0),IF(J26=2,IF(A89="OFF",0,J19),0),IF(J27=2,IF(A90="OFF",0,J20),0),IF(J29=2,IF(A91="OFF",0,J22),0)) -> 3.46 | B85: =IF(J24=0,4,IF(J24=1,4+A83+IF(A83=0,0,2),IF(J24=2,4+A83+IF(A83=0,0,2)+A84+IF(A84=0,0,2),4+A83+IF(A83=0,0,2)+A84+IF(A84=0,0,2)+A85+IF(A85=0,0,2)))) -> 10.4 | D85: 0 | S85: 1 | T85: 0 | U85: 0 | V85: 1.66 | W85: -- | X85: 1.66 | Y85: 1.66 | Z85: 0.51875 | AA85: 0.51875 | AB85: 0.51875 | AC85: 0.51875 | AD85: 1.66
A86: =MAX(IF(J24=3,IF(A87="OFF",0,J17),0),IF(J25=3,IF(A88="OFF",0,J18),0),IF(J26=3,IF(A89="OFF",0,J19),0),IF(J27=3,IF(A90="OFF",0,J20),0),IF(J29=3,IF(A91="OFF",0,J22),0)) -> 1.8 | B86: =B85 + J17 -> 13.86 | D86: =IF(L24="OFF",0,J17) -> 3.46 | S86: 1 | T86: 0 | U86: 0 | V86: 1.68 | W86: -- | X86: 1.68 | Y86: 1.68 | Z86: 0.525 | AA86: 0.525 | AB86: 0.525 | AC86: 0.525 | AD86: 1.68
A87: =L24 -> ON | B87: 25 | D87: =D86 -> 3.46 | S87: 1 | T87: 0 | U87: 0 | V87: 1.7 | W87: -- | X87: 1.7 | Y87: 1.7 | Z87: 0.53125 | AA87: 0.53125 | AB87: 0.53125 | AC87: 0.53125 | AD87: 1.7
A88: =IF(N18="",L25,"OFF") -> ON | B88: 0 | F88: 0 | S88: 1 | T88: 0 | U88: 0 | V88: 1.72 | W88: -- | X88: 1.72 | Y88: 1.72 | Z88: 0.5375 | AA88: 0.5375 | AB88: 0.5375 | AC88: 0.5375 | AD88: 1.72
A89: =IF(N19="",L26,"OFF") -> ON | B89: =IF(J25=0,4,IF(J25=1,4+A83+IF(A83=0,0,2),IF(J25=2,4+A83+IF(A83=0,0,2)+A84+IF(A84=0,0,2),4+A83+IF(A83=0,0,2)+A84+IF(A84=0,0,2)+A85+IF(A85=0,0,2)))) -> 15.86 | F89: 0 | S89: 1 | T89: 0 | U89: 0 | V89: 1.74 | W89: -- | X89: 1.74 | Y89: 1.74 | Z89: 0.54375 | AA89: 0.54375 | AB89: 0.54375 | AC89: 0.54375 | AD89: 1.74
A90: =IF(N20="",L27,"OFF") -> ON | B90: =B89 + IF(N18="",J18,0) -> 17.66 | F90: =IF(L25="OFF",0,IF(N18="",J18,0)) -> 1.8 | S90: 1 | T90: 0 | U90: 0 | V90: 1.76 | W90: -- | X90: 1.76 | Y90: 1.76 | Z90: 0.55 | AA90: 0.55 | AB90: 0.55 | AC90: 0.55 | AD90: 1.76
A91: =L29 -> ON | B91: 25 | F91: =F90 -> 1.8 | S91: 1 | T91: 0 | U91: 0 | V91: 1.78 | W91: -- | X91: 1.78 | Y91: 1.78 | Z91: 0.55625 | AA91: 0.55625 | AB91: 0.55625 | AC91: 0.55625 | AD91: 1.78
A92: PG1 | B92: 0 | H92: 0 | S92: 1 | T92: 0 | U92: 0 | V92: 1.8 | W92: -- | X92: 1.8 | Y92: 1.8 | Z92: 0.5625 | AA92: 0.5625 | AB92: 0.5625 | AC92: 0.5625 | AD92: 1.8
A93: =IF(AND(A87="ON",J46="ON"),"ON","OFF") -> ON | B93: =IF(J29=0,4,IF(J29=1,4+A83+IF(A83=0,0,2),IF(J29=2,4+A83+IF(A83=0,0,2)+A84+IF(A84=0,0,2),4+A83+IF(A83=0,0,2)+A84+IF(A84=0,0,2)+A85+IF(A85=0,0,2)))) -> 10.4 | H93: 0 | S93: 1 | T93: 0 | U93: 0 | V93: 1.82 | W93: -- | X93: 1.82 | Y93: 1.82 | Z93: 0.56875 | AA93: 0.56875 | AB93: 0.56875 | AC93: 0.56875 | AD93: 1.82
A94: =IF(AND(A88="ON",J47="ON"),"ON","OFF") -> OFF | B94: =B93 + J22 -> 13.74 | H94: =IF(L29="OFF",0,J22) -> 3.34 | S94: 1 | T94: 0 | U94: 0 | V94: 1.84 | W94: -- | X94: 1.84 | Y94: 1.84 | Z94: 0.575 | AA94: 0.575 | AB94: 0.575 | AC94: 0.575 | AD94: 1.84
A95: =IF(AND(A89="ON",J48="ON"),"ON","OFF") -> OFF | B95: 25 | H95: =H94 -> 3.34 | S95: 1 | T95: 0 | U95: 0 | V95: 1.86 | W95: -- | X95: 1.86 | Y95: 1.86 | Z95: 0.58125 | AA95: 0.58125 | AB95: 0.58125 | AC95: 0.58125 | AD95: 1.86
A96: =IF(AND(A90="ON",J49="ON"),"ON","OFF") -> OFF | B96: 0 | J96: 0 | S96: 1 | T96: 0 | U96: 0 | V96: 1.88 | W96: -- | X96: 1.88 | Y96: 1.88 | Z96: 0.5875 | AA96: 0.5875 | AB96: 0.5875 | AC96: 0.5875 | AD96: 1.88
A97: =IF(AND(A91="ON",J50="ON"),"ON","OFF") -> OFF | B97: =IF(J26=0,4,IF(J26=1,4+A83+IF(A83=0,0,2),IF(J26=2,4+A83+IF(A83=0,0,2)+A84+IF(A84=0,0,2),4+A83+IF(A83=0,0,2)+A84+IF(A84=0,0,2)+A85+IF(A85=0,0,2)))) -> 6.9 | J97: 0 | S97: 1 | T97: 0 | U97: 0 | V97: 1.9 | W97: -- | X97: 1.9 | Y97: 1.9 | Z97: 0.59375 | AA97: 0.59375 | AB97: 0.59375 | AC97: 0.59375 | AD97: 1.9
A98: PG2 | B98: =B97 + IF(N19="",J19,0) -> 8.4 | J98: =IF(L26="OFF",0,IF(N19="",J19,0)) -> 1.5 | S98: 1 | T98: 0 | U98: 0 | V98: 1.92 | W98: -- | X98: 1.92 | Y98: 1.92 | Z98: 0.6 | AA98: 0.6 | AB98: 0.6 | AC98: 0.6 | AD98: 1.92
A99: =IF(AND(A87="ON",L46="ON"),"ON","OFF") -> OFF | B99: 25 | J99: =J98 -> 1.5 | S99: 1 | T99: 0 | U99: 0 | V99: 1.94 | W99: -- | X99: 1.94 | Y99: 1.94 | Z99: 0.60625 | AA99: 0.60625 | AB99: 0.60625 | AC99: 0.60625 | AD99: 1.94
A100: =IF(AND(A88="ON",L47="ON"),"ON","OFF") -> ON | B100: 0 | L100: 0 | S100: =S99 -> 1 | T100: 0 | U100: 0 | V100: 1.96 | W100: -- | X100: 1.96 | Y100: 1.96 | Z100: 0.6125 | AA100: 0.6125 | AB100: 0.6125 | AC100: 0.6125 | AD100: 1.96
A101: =IF(AND(A89="ON",L48="ON"),"ON","OFF") -> OFF | B101: =IF(J27=0,4,IF(J27=1,4+A83+IF(A83=0,0,2),IF(J27=2,4+A83+IF(A83=0,0,2)+A84+IF(A84=0,0,2),4+A83+IF(A83=0,0,2)+A84+IF(A84=0,0,2)+A85+IF(A85=0,0,2)))) -> 4 | L101: 0 | S101: 1 | T101: 0 | U101: 0 | V101: 1.98 | W101: -- | X101: 1.98 | Y101: 1.98 | Z101: 0.61875 | AA101: 0.61875 | AB101: 0.61875 | AC101: 0.61875 | AD101: 1.98
A102: =IF(AND(A90="ON",L49="ON"),"ON","OFF") -> OFF | B102: =B101 + IF(N20="",J20,0) -> 4.9 | L102: =IF(L27="OFF",0,IF(N20="",J20,0)) -> 0.9 | S102: 1 | T102: 0 | U102: 0 | V102: 2 | W102: -- | X102: 2 | Y102: 2 | Z102: 0.625 | AA102: 0.625 | AB102: 0.625 | AC102: 0.625 | AD102: 2
A103: =IF(AND(A91="ON",L50="ON"),"ON","OFF") -> OFF | B103: 25 | L103: =L102 -> 0.9 | S103: 1 | T103: 0 | U103: 0 | V103: 2.02 | W103: -- | X103: 2.02 | Y103: 2.02 | Z103: 0.63125 | AA103: 0.63125 | AB103: 0.63125 | AC103: 0.63125 | AD103: 2.02
B104: Time (ms) | D104: PG1 | F104: PG2 | S104: 1 | T104: 0 | U104: 0 | V104: 2.04 | W104: -- | X104: 2.04 | Y104: 2.04 | Z104: 0.6375 | AA104: 0.6375 | AB104: 0.6375 | AC104: 0.6375 | AD104: 2.04
B105: 0 | D105: 0 | S105: 1 | T105: 0 | U105: 0 | V105: 2.06 | W105: -- | X105: 2.06 | Y105: 2.06 | Z105: 0.64375 | AA105: 0.64375 | AB105: 0.64375 | AC105: 0.64375 | AD105: 2.06
A106: Author:peihuang@maxlinear.com | B106: =MAX(IF(A96="ON",B102+2,0),IF(A95="ON",B98+2,0),IF(A94="ON",B90+2,0),IF(A93="ON",B86+2,0),IF(A97="ON",B94+2,0)) -> 15.86 | D106: 0 | S106: 1 | T106: 0 | U106: 0 | V106: 2.08 | W106: -- | X106: 2.08 | Y106: 2.08 | Z106: 0.65 | AA106: 0.65 | AB106: 0.65 | AC106: 0.65 | AD106: 2.08
B107: =B106 -> 15.86 | D107: =IF(B106=0,0,5) -> 5 | S107: 1 | T107: 0 | U107: 0 | V107: 2.1 | W107: -- | X107: 2.1 | Y107: 2.1 | Z107: 0.65625 | AA107: 0.65625 | AB107: 0.65625 | AC107: 0.65625 | AD107: 2.1
B108: 25 | D108: =D107 -> 5 | S108: 1 | T108: 0 | U108: 0 | V108: 2.12 | W108: -- | X108: 2.12 | Y108: 2.12 | Z108: 0.6625 | AA108: 0.6625 | AB108: 0.6625 | AC108: 0.6625 | AD108: 2.12
B109: 0 | F109: 0 | S109: 1 | T109: 0 | U109: 0 | V109: 2.14 | W109: -- | X109: 2.14 | Y109: 2.14 | Z109: 0.66875 | AA109: 0.66875 | AB109: 0.66875 | AC109: 0.66875 | AD109: 2.14
B110: =MAX(IF(A102="ON",B102+2,0),IF(A101="ON",B98+2,0),IF(A100="ON",B90+2,0),IF(A99="ON",B86+2,0),IF(A103="ON",B94+2,0)) -> 19.66 | F110: 0 | S110: 1 | T110: 0 | U110: 0 | V110: 2.16 | W110: -- | X110: 2.16 | Y110: 2.16 | Z110: 0.675 | AA110: 0.675 | AB110: 0.675 | AC110: 0.675 | AD110: 2.16
B111: =B110 -> 19.66 | F111: =IF(B110=0,0,5) -> 5 | S111: 1 | T111: 0 | U111: 0 | V111: 2.18 | W111: -- | X111: 2.18 | Y111: 2.18 | Z111: 0.68125 | AA111: 0.68125 | AB111: 0.68125 | AC111: 0.68125 | AD111: 2.18
B112: 25 | F112: =F111 -> 5 | S112: 1 | T112: 0 | U112: 0 | V112: 2.2 | W112: -- | X112: 2.2 | Y112: 2.2 | Z112: 0.6875 | AA112: 0.6875 | AB112: 0.6875 | AC112: 0.6875 | AD112: 2.2
S113: 1 | T113: 0 | U113: 0 | V113: 2.22 | W113: -- | X113: 2.22 | Y113: 2.22 | Z113: 0.69375 | AA113: 0.69375 | AB113: 0.69375 | AC113: 0.69375 | AD113: 2.22
S114: 1 | T114: 0 | U114: 0 | V114: 2.24 | W114: -- | X114: 2.24 | Y114: 2.24 | Z114: 0.7 | AA114: 0.7 | AB114: 0.7 | AC114: 0.7 | AD114: 2.24
S115: 1 | T115: 0 | U115: 0 | V115: 2.26 | W115: -- | X115: 2.26 | Y115: 2.26 | Z115: 0.70625 | AA115: 0.70625 | AB115: 0.70625 | AC115: 0.70625 | AD115: 2.26
S116: =S115 -> 1 | T116: 0 | U116: 0 | V116: 2.28 | W116: -- | X116: 2.28 | Y116: 2.28 | Z116: 0.7125 | AA116: 0.7125 | AB116: 0.7125 | AC116: 0.7125 | AD116: 2.28
S117: 1 | T117: 0 | U117: 0 | V117: 2.3 | W117: -- | X117: 2.3 | Y117: 2.3 | Z117: 0.71875 | AA117: 0.71875 | AB117: 0.71875 | AC117: 0.71875 | AD117: 2.3
S118: 1 | T118: 0 | U118: 0 | V118: 2.32 | W118: -- | X118: 2.32 | Y118: 2.32 | Z118: 0.725 | AA118: 0.725 | AB118: 0.725 | AC118: 0.725 | AD118: 2.32
A119: Author : peihuang@maxlinear.com | S119: 1 | T119: 0 | U119: 0 | V119: 2.34 | W119: -- | X119: 2.34 | Y119: 2.34 | Z119: 0.73125 | AA119: 0.73125 | AB119: 0.73125 | AC119: 0.73125 | AD119: 2.34
S120: 1 | T120: 0 | U120: 0 | V120: 2.36 | W120: -- | X120: 2.36 | Y120: 2.36 | Z120: 0.7375 | AA120: 0.7375 | AB120: 0.7375 | AC120: 0.7375 | AD120: 2.36
S121: 1 | T121: 0 | U121: 0 | V121: 2.38 | W121: -- | X121: 2.38 | Y121: 2.38 | Z121: 0.74375 | AA121: 0.74375 | AB121: 0.74375 | AC121: 0.74375 | AD121: 2.38
S122: 1 | T122: 0 | U122: 0 | V122: 2.4 | W122: -- | X122: 2.4 | Y122: 2.4 | Z122: 0.75 | AA122: 0.75 | AB122: 0.75 | AC122: 0.75 | AD122: 2.4
S123: 1 | T123: 0 | U123: 0 | V123: 2.42 | W123: -- | X123: 2.42 | Y123: 2.42 | Z123: 0.75625 | AA123: 0.75625 | AB123: 0.75625 | AC123: 0.75625 | AD123: 2.42
S124: 1 | T124: 0 | U124: 0 | V124: 2.44 | W124: -- | X124: 2.44 | Y124: 2.44 | Z124: 0.7625 | AA124: 0.7625 | AB124: 0.7625 | AC124: 0.7625 | AD124: 2.44
S125: 1 | T125: 0 | U125: 0 | V125: 2.46 | W125: -- | X125: 2.46 | Y125: 2.46 | Z125: 0.76875 | AA125: 0.76875 | AB125: 0.76875 | AC125: 0.76875 | AD125: 2.46
S126: 1 | T126: 0 | U126: 0 | V126: 2.48 | W126: -- | X126: 2.48 | Y126: 2.48 | Z126: 0.775 | AA126: 0.775 | AB126: 0.775 | AC126: 0.775 | AD126: 2.48
S127: 1 | T127: 0 | U127: 0 | V127: 2.5 | W127: -- | X127: 2.5 | Y127: 2.5 | Z127: 0.78125 | AA127: 0.78125 | AB127: 0.78125 | AC127: 0.78125 | AD127: 2.5
S128: 1 | T128: 0 | U128: 0 | V128: 2.52 | W128: -- | X128: 2.52 | Z128: 0.7875 | AA128: 0.7875 | AB128: 0.7875 | AC128: 0.7875 | AD128: 2.52
S129: 1 | T129: 0 | U129: 0 | V129: 2.54 | W129: -- | X129: 2.54 | Z129: 0.79375 | AA129: 0.79375 | AB129: 0.79375 | AC129: 0.79375 | AD129: 2.54
S130: 1 | T130: 0 | U130: 0 | V130: 2.56 | W130: -- | Z130: 0.8 | AA130: 0.8 | AB130: 0.8 | AC130: 0.8 | AD130: 2.56
S131: 1 | T131: 0 | U131: 0 | V131: 2.58 | W131: =IF(V131>(T131-0.8),"--",V131) -> -- | Z131: 0.80625 | AA131: =IF(Z131<(U131*S131*0.12),"--",Z131) -> 0.80625 | AB131: 0.80625 | AC131: =IF(AB131<(U131*S131*0.12),"--",AB131) -> 0.80625 | AD131: 2.58
S132: =S131 -> 1 | T132: 0 | U132: 0 | V132: 2.6 | W132: -- | Z132: 0.8125 | AA132: 0.8125 | AB132: 0.8125 | AC132: 0.8125 | AD132: 2.6
S133: 1 | T133: 0 | U133: 0 | V133: 2.62 | W133: -- | Z133: 0.81875 | AA133: 0.81875 | AB133: 0.81875 | AC133: 0.81875 | AD133: 2.62
S134: 1 | T134: 0 | U134: 0 | V134: 2.64 | W134: -- | Z134: 0.825 | AA134: 0.825 | AB134: 0.825 | AC134: 0.825 | AD134: 2.64
S135: 1 | T135: 0 | U135: 0 | V135: 2.66 | W135: -- | Z135: 0.83125 | AA135: 0.83125 | AB135: 0.83125 | AC135: 0.83125 | AD135: 2.66
S136: 1 | T136: 0 | U136: 0 | V136: 2.68 | W136: -- | Z136: 0.8375 | AA136: 0.8375 | AB136: 0.8375 | AC136: 0.8375 | AD136: 2.68
S137: 1 | T137: 0 | U137: 0 | V137: 2.7 | W137: -- | Z137: 0.84375 | AA137: 0.84375 | AB137: 0.84375 | AC137: 0.84375 | AD137: 2.7
S138: 1 | T138: 0 | U138: 0 | V138: 2.72 | W138: -- | Z138: 0.85 | AA138: 0.85 | AB138: 0.85 | AC138: 0.85 | AD138: 2.72
S139: 1 | T139: 0 | U139: 0 | V139: 2.74 | W139: -- | Z139: 0.85625 | AA139: 0.85625 | AB139: 0.85625 | AC139: 0.85625 | AD139: 2.74
S140: 1 | T140: 0 | U140: 0 | V140: 2.76 | W140: -- | Z140: 0.8625 | AA140: 0.8625 | AB140: 0.8625 | AC140: 0.8625 | AD140: 2.76
S141: 1 | T141: 0 | U141: 0 | V141: 2.78 | W141: -- | Z141: 0.86875 | AA141: 0.86875 | AB141: 0.86875 | AC141: 0.86875 | AD141: 2.78
S142: 1 | T142: 0 | U142: 0 | V142: 2.8 | W142: -- | Z142: 0.875 | AA142: 0.875 | AB142: 0.875 | AC142: 0.875 | AD142: 2.8
S143: 1 | T143: 0 | U143: 0 | V143: 2.82 | W143: -- | Z143: 0.88125 | AA143: 0.88125 | AB143: 0.88125 | AC143: 0.88125 | AD143: 2.82
S144: 1 | T144: 0 | U144: 0 | V144: 2.84 | W144: -- | Z144: 0.8875 | AA144: 0.8875 | AB144: 0.8875 | AC144: 0.8875 | AD144: 2.84
S145: 1 | T145: 0 | U145: 0 | V145: 2.86 | W145: -- | Z145: 0.89375 | AA145: 0.89375 | AB145: 0.89375 | AC145: 0.89375 | AD145: 2.86
S146: 1 | T146: 0 | U146: 0 | V146: 2.88 | W146: -- | Z146: 0.9 | AA146: 0.9 | AB146: 0.9 | AC146: 0.9 | AD146: 2.88
S147: 1 | T147: 0 | U147: 0 | V147: 2.9 | W147: -- | Z147: 0.90625 | AA147: 0.90625 | AB147: 0.90625 | AC147: 0.90625 | AD147: 2.9
S148: =S147 -> 1 | T148: 0 | U148: 0 | V148: 2.92 | W148: -- | Z148: 0.9125 | AA148: 0.9125 | AB148: 0.9125 | AC148: 0.9125 | AD148: 2.92
S149: 1 | T149: 0 | U149: 0 | V149: 2.94 | W149: -- | Z149: 0.91875 | AA149: 0.91875 | AB149: 0.91875 | AC149: 0.91875 | AD149: 2.94
S150: 1 | T150: 0 | U150: 0 | V150: 2.96 | W150: -- | Z150: 0.925 | AA150: 0.925 | AB150: 0.925 | AC150: 0.925 | AD150: 2.96
S151: 1 | T151: 0 | U151: 0 | V151: 2.98 | W151: -- | Z151: 0.93125 | AA151: 0.93125 | AB151: 0.93125 | AC151: 0.93125 | AD151: 2.98
S152: 1 | T152: 0 | U152: 0 | V152: 3 | W152: -- | Z152: 0.9375 | AA152: 0.9375 | AB152: 0.9375 | AC152: 0.9375 | AD152: 3
S153: 1 | T153: 0 | U153: 0 | V153: 3.02 | W153: -- | Z153: 0.94375 | AA153: 0.94375 | AB153: 0.94375 | AC153: 0.94375 | AD153: 3.02
S154: 1 | T154: 0 | U154: 0 | V154: 3.04 | W154: -- | Z154: 0.95 | AA154: 0.95 | AB154: 0.95 | AC154: 0.95 | AD154: 3.04
S155: 1 | T155: 0 | U155: 0 | V155: 3.06 | W155: -- | Z155: 0.95625 | AA155: 0.95625 | AB155: 0.95625 | AC155: 0.95625 | AD155: 3.06
S156: 1 | T156: 0 | U156: 0 | V156: 3.08 | W156: -- | Z156: 0.9625 | AA156: 0.9625 | AB156: 0.9625 | AC156: 0.9625 | AD156: 3.08
S157: 1 | T157: 0 | U157: 0 | V157: 3.1 | W157: -- | Z157: 0.96875 | AA157: 0.96875 | AB157: 0.96875 | AC157: 0.96875 | AD157: 3.1
S158: 1 | T158: 0 | U158: 0 | V158: 3.12 | W158: -- | Z158: 0.975 | AA158: 0.975 | AB158: 0.975 | AC158: 0.975 | AD158: 3.12
S159: 1 | T159: 0 | U159: 0 | V159: 3.14 | W159: -- | Z159: 0.98125 | AA159: 0.98125 | AB159: 0.98125 | AC159: 0.98125 | AD159: 3.14
S160: 1 | T160: 0 | U160: 0 | V160: 3.16 | W160: -- | Z160: 0.9875 | AA160: 0.9875 | AB160: 0.9875 | AC160: 0.9875 | AD160: 3.16
S161: 1 | T161: 0 | U161: 0 | V161: 3.18 | W161: -- | Z161: 0.99375 | AA161: 0.99375 | AB161: 0.99375 | AC161: 0.99375 | AD161: 3.18
S162: 1 | T162: 0 | U162: 0 | V162: 3.2 | W162: -- | Z162: 1 | AA162: 1 | AB162: 1 | AC162: 1 | AD162: 3.2
S163: 1 | T163: 0 | U163: 0 | V163: 3.22 | W163: -- | Z163: 1.00625 | AA163: 1.00625 | AB163: 1.00625 | AC163: 1.00625 | AD163: 3.22
S164: =S163 -> 1 | T164: 0 | U164: 0 | V164: 3.24 | W164: -- | Z164: 1.0125 | AA164: 1.0125 | AB164: 1.0125 | AC164: 1.0125 | AD164: 3.24
S165: 1 | T165: 0 | U165: 0 | V165: 3.26 | W165: -- | Z165: 1.01875 | AA165: 1.01875 | AB165: 1.01875 | AC165: 1.01875 | AD165: 3.26
S166: 1 | T166: 0 | U166: 0 | V166: 3.28 | W166: -- | Z166: 1.025 | AA166: 1.025 | AB166: 1.025 | AC166: 1.025 | AD166: 3.28
S167: 1 | T167: 0 | U167: 0 | V167: 3.3 | W167: -- | Z167: 1.03125 | AA167: 1.03125 | AB167: 1.03125 | AC167: 1.03125 | AD167: 3.3
S168: 1 | T168: 0 | U168: 0 | V168: 3.32 | W168: -- | Z168: 1.0375 | AA168: 1.0375 | AB168: 1.0375 | AC168: 1.0375 | AD168: 3.32
S169: 1 | T169: 0 | U169: 0 | V169: 3.34 | W169: -- | Z169: 1.04375 | AA169: 1.04375 | AB169: 1.04375 | AC169: 1.04375 | AD169: 3.34
S170: 1 | T170: 0 | U170: 0 | V170: 3.36 | W170: -- | Z170: 1.05 | AA170: 1.05 | AB170: 1.05 | AC170: 1.05 | AD170: 3.36
S171: 1 | T171: 0 | U171: 0 | V171: 3.38 | W171: -- | Z171: 1.05625 | AA171: 1.05625 | AB171: 1.05625 | AC171: 1.05625 | AD171: 3.38
S172: 1 | T172: 0 | U172: 0 | V172: 3.4 | W172: -- | Z172: 1.0625 | AA172: 1.0625 | AB172: 1.0625 | AC172: 1.0625 | AD172: 3.4
S173: 1 | T173: 0 | U173: 0 | V173: 3.42 | W173: -- | Z173: 1.06875 | AA173: 1.06875 | AB173: 1.06875 | AC173: 1.06875 | AD173: 3.42
S174: 1 | T174: 0 | U174: 0 | V174: 3.44 | W174: -- | Z174: 1.075 | AA174: 1.075 | AB174: 1.075 | AC174: 1.075 | AD174: 3.44
S175: 1 | T175: 0 | U175: 0 | V175: 3.46 | W175: -- | Z175: 1.08125 | AA175: 1.08125 | AB175: 1.08125 | AC175: 1.08125 | AD175: 3.46
S176: 1 | T176: 0 | U176: 0 | V176: 3.48 | W176: -- | Z176: 1.0875 | AA176: 1.0875 | AB176: 1.0875 | AC176: 1.0875 | AD176: 3.48
S177: 1 | T177: 0 | U177: 0 | V177: 3.5 | W177: -- | Z177: 1.09375 | AA177: 1.09375 | AB177: 1.09375 | AC177: 1.09375 | AD177: 3.5
S178: 1 | T178: 0 | U178: 0 | V178: 3.52 | W178: -- | Z178: 1.1 | AA178: 1.1 | AB178: 1.1 | AC178: 1.1 | AD178: 3.52
S179: 1 | T179: 0 | U179: 0 | V179: 3.54 | W179: -- | Z179: 1.10625 | AA179: 1.10625 | AB179: 1.10625 | AC179: 1.10625 | AD179: 3.54
S180: =S179 -> 1 | T180: 0 | U180: 0 | V180: 3.56 | W180: -- | Z180: 1.1125 | AA180: 1.1125 | AB180: 1.1125 | AC180: 1.1125 | AD180: 3.56
S181: 1 | T181: 0 | U181: 0 | V181: 3.58 | W181: -- | Z181: 1.11875 | AA181: 1.11875 | AB181: 1.11875 | AC181: 1.11875 | AD181: 3.58
S182: 1 | T182: 0 | U182: 0 | V182: 3.6 | W182: -- | Z182: 1.125 | AA182: 1.125 | AB182: 1.125 | AC182: 1.125 | AD182: 3.6
S183: 1 | T183: 0 | U183: 0 | V183: 3.62 | W183: -- | Z183: 1.13125 | AA183: 1.13125 | AB183: 1.13125 | AC183: 1.13125 | AD183: 3.62
S184: 1 | T184: 0 | U184: 0 | V184: 3.64 | W184: -- | Z184: 1.1375 | AA184: 1.1375 | AB184: 1.1375 | AC184: 1.1375 | AD184: 3.64
S185: 1 | T185: 0 | U185: 0 | V185: 3.66 | W185: -- | Z185: 1.14375 | AA185: 1.14375 | AB185: 1.14375 | AC185: 1.14375 | AD185: 3.66
S186: 1 | T186: 0 | U186: 0 | V186: 3.68 | W186: -- | Z186: 1.15 | AA186: 1.15 | AB186: 1.15 | AC186: 1.15 | AD186: 3.68
S187: 1 | T187: 0 | U187: 0 | V187: 3.7 | W187: -- | Z187: 1.15625 | AA187: 1.15625 | AB187: 1.15625 | AC187: 1.15625 | AD187: 3.7
S188: 1 | T188: 0 | U188: 0 | V188: 3.72 | W188: -- | Z188: 1.1625 | AA188: 1.1625 | AB188: 1.1625 | AC188: 1.1625 | AD188: 3.72
S189: 1 | T189: 0 | U189: 0 | V189: 3.74 | W189: -- | Z189: 1.16875 | AA189: 1.16875 | AB189: 1.16875 | AC189: 1.16875 | AD189: 3.74
S190: 1 | T190: 0 | U190: 0 | V190: 3.76 | W190: -- | Z190: 1.175 | AA190: 1.175 | AB190: 1.175 | AC190: 1.175 | AD190: 3.76
S191: 1 | T191: 0 | U191: 0 | V191: 3.78 | W191: -- | Z191: 1.18125 | AA191: 1.18125 | AB191: 1.18125 | AC191: 1.18125 | AD191: 3.78
S192: 1 | T192: 0 | U192: 0 | V192: 3.8 | W192: -- | Z192: 1.1875 | AA192: 1.1875 | AB192: 1.1875 | AC192: 1.1875 | AD192: 3.8
S193: 1 | T193: 0 | U193: 0 | V193: 3.82 | W193: -- | Z193: 1.19375 | AA193: 1.19375 | AB193: 1.19375 | AC193: 1.19375 | AD193: 3.82
S194: 1 | T194: 0 | U194: 0 | V194: 3.84 | W194: -- | Z194: 1.2 | AA194: 1.2 | AB194: 1.2 | AC194: 1.2 | AD194: 3.84
S195: 1 | T195: 0 | U195: 0 | V195: 3.86 | W195: =IF(V195>(T195-0.8),"--",V195) -> -- | Z195: 1.20625 | AA195: =IF(Z195<(U195*S195*0.12),"--",Z195) -> 1.20625 | AB195: 1.20625 | AC195: =IF(AB195<(U195*S195*0.12),"--",AB195) -> 1.20625 | AD195: 3.86
S196: =S195 -> 1 | T196: 0 | U196: 0 | V196: 3.88 | W196: -- | Z196: 1.2125 | AA196: 1.2125 | AB196: 1.2125 | AC196: 1.2125 | AD196: 3.88
S197: 1 | T197: 0 | U197: 0 | V197: 3.9 | W197: -- | Z197: 1.21875 | AA197: 1.21875 | AB197: 1.21875 | AC197: 1.21875 | AD197: 3.9
S198: 1 | T198: 0 | U198: 0 | V198: 3.92 | W198: -- | Z198: 1.225 | AA198: 1.225 | AB198: 1.225 | AC198: 1.225 | AD198: 3.92
S199: 1 | T199: 0 | U199: 0 | V199: 3.94 | W199: -- | Z199: 1.23125 | AA199: 1.23125 | AB199: 1.23125 | AC199: 1.23125 | AD199: 3.94
S200: 1 | T200: 0 | U200: 0 | V200: 3.96 | W200: -- | Z200: 1.2375 | AA200: 1.2375 | AB200: 1.2375 | AC200: 1.2375 | AD200: 3.96
... 57 more rows

Sheet Simple Data
A1: Date | B1: Time | C1: Millis | D1: RandonValue

Sheet PLXDAQ_new_Settings (hidden)
B3: Previous Port: | C3: 4 | E3: DO NOT CHANGE THIS LAYOUT OR THE MACRO WONT WORK ANYMORE !!!!
B4: Previous Baud: | C4: 9600
B5: Rst on Connect?: | C5: TRUE
B6: Custom Checkbox 1 | C6: TRUE
B7: Custom Checkbox 2 | C7: TRUE
B8: Custom Checkbox 3 | C8: TRUE
B9: Sheet name to use: | C9: MxL7704
B10: Log Incoming to DDW: | C10: TRUE
B11: Log Outgoing to DDW: | C11: TRUE
B12: Log System to DDW: | C12: TRUE
B13: Add Timestamp to DDW: | C13: TRUE
B14: Custom Form Width: | C14: 740.5
B15: #EXPERT-CONFIG# Serial Device Read buffer: | C15: 1024
B16: #EXPERT-CONFIG# Serial Device Write buffer: | C16: 1024
B17: #EXPERT-CONFIG# Excel Read buffer size: | C17: 1024
B18: #EXPERT-CONFIG# Excel interim buffer size: | C18: 64
